Cogmind - Beta 10.2 @@@ ROGUE MODE // 2021.05.11 @ 12:56:59 Player: Teratos Result: Destroyed by G-34 Mercenary with Small Laser Performance ------------- Evolutions (0) 0 Regions Visited (1) 200 Robots Destroyed (31) 155 Value Destroyed (726) 726 Prototype IDs (6) 120 Alien Tech Used (0) 0 Bonus (0) 0 TOTAL SCORE: 1201 Bonus ------- None Cogmind --------- Core Integrity 0/250 Matter 294/300 Energy 121/125 System Corruption 0% Temperature Cool (63) Movement Walking (120) Location -10/Materials Parts ------- > --- POWER (1) -------- Light Ion Engine > --- PROPULSION (2) --- Aluminum Leg Aluminum Leg > --- UTILITY (2) ------ (None) > --- WEAPON (2) ------- (None) > --- INVENTORY (4) ---- Ion Engine Light Ion Engine Aluminum Leg Peak State ------------ > --- POWER ------------ Light Ion Engine > --- PROPULSION ------- Aluminum Leg Aluminum Leg > --- UTILITY ---------- Heat Sink Improved Heat Sink > --- WEAPON ----------- Particle Gun Particle Gun > --- INVENTORY -------- Ion Engine Aluminum Leg Particle Gun [Rating: 11] Favorites ----------- Power Light Ion Engine Engine Light Ion Engine Propulsion Aluminum Leg Treads Light Treads Leg Aluminum Leg Utility Improved Heat Sink Device Improved Heat Sink Storage Small Storage Unit Processor Signal Interpreter Weapon Particle Gun Energy Gun Particle Gun Ballistic Gun Light Assault Rifle Build | -11 -10 ------- Run | Scr Mat Slots Evolved . | . . Power . | . . Propulsion . | . . Utility . | . . Weapon . | . . Parts Attached 25 | 6 19 Power 4 | 1 3 Engine 4 | 1 3 Core . | . . Reactor . | . . Propulsion 6 | 2 4 Treads 2 | 2 . Leg 4 | . 4 Wheel . | . . Hover . | . . Flight . | . . Utility 4 | 1 3 Device 2 | . 2 Storage 1 | 1 . Processor 1 | . 1 Hackware . | . . Protection . | . . Artifact . | . . Weapon 11 | 2 9 Energy Gun 9 | . 9 Energy Cannon . | . . Ballistic Gun 2 | 2 . Ballistic Cannon . | . . Launcher . | . . Special Weapon . | . . Impact Weapon . | . . Slashing Weapon . | . . Piercing Weapon . | . . Special Melee Weapon . | . . Unidentified Prototypes . | . . Parts Lost 9 | . 9 Power 1 | . 1 Propulsion 2 | . 2 Utility 2 | . 2 Weapon 4 | . 4 Highest Loss Streak 4 | . 4 Average Slot Usage (%) 87 | . 87 Engine 12 | . 12 Treads 9 | . 9 Leg 16 | . 16 Device 15 | . 15 Storage 1 | . 1 Processor 3 | . 3 Energy Gun 24 | . 24 Ballistic Gun 2 | . 2 Naked Turns . | . . Heaviest Build 11 | 9 11 Greatest Support 40 | 40 40 Greatest Overweight (x) 1 | 1 1 Average Overweight (x) . | . . Largest Inventory Capacity 6 | 6 6 Average Capacity 4 | 4 4 Most Carried 4 | . 4 Average Carried 1 | . 2 Final Capacity 6 | 6 4 Final Carried 3 | . 3 Class Distribution -------------------- 54% | Scavenger-Mutant 45% | Mutant Dominant Class ---------------- Scavenger-Mutant | -10/Materials Resources | -11 -10 ----------- Run | Scr Mat Matter Collected 433 | 116 317 Remotely . | . . Salvage Created 1046 | . 1046 Parts 66 | . 66 Haulers Intercepted 1 | . 1 Recyclers Shooed 4 | . 4 Parts Field Recycled . | . . Retrieved Matter . | . . Parts Self-Destructed . | . . Prevented . | . . Kills | -11 -10 ------- Run | Scr Mat Combat Hostiles Destroyed 22 | . 22 Melee 1 | . 1 Guns 21 | . 21 Classes Destroyed 7 | . 7 Builder 2 | . 2 Tunneler 1 | . 1 Hauler 1 | . 1 Recycler 2 | . 2 Watcher 3 | . 3 Swarmer 6 | . 6 Grunt 16 | . 16 Best Kill Streak 4 | . 4 Combat Bots Only 3 | . 3 Max Kills in Single Turn 1 | . 1 Gunslinging . | . . Exploded . | . . Melee 1 | . 1 Uniques/NPCs Destroyed . | . . Combat | -11 -10 -------- Run | Scr Mat Damage Taken 1034 | . 1034 Core 260 | . 260 Absorbed by Shields . | . . Core Remaining (%) 100 | 100 . Volleys Fired 83 | . 83 Largest 2 | . 2 Hottest 130 | . 130 Shots Fired 150 | . 150 Gun 150 | . 150 Cannon . | . . Launcher . | . . Special . | . . Kinetic 3 | . 3 Thermal 121 | . 121 Explosive . | . . Electromagnetic 26 | . 26 Robot Hit Streak 9 | . 9 Robot Miss Streak 7 | . 7 Penetration Max . | . . Secondary Targets . | . . Shots Hit Robots 85 | . 85 Core Hits 44 | . 44 Critical Hits . | . . Critical Kills . | . . Critical Parts Destroyed . | . . Melee Attacks . | . . Impact . | . . Slashing . | . . Piercing . | . . Sneak Attacks . | . . Combat Hostiles . | . . Follow-up Attacks . | . . Damage Inflicted 1282 | . 1282 Guns 1274 | . 1274 Cannons . | . . Explosions . | . . Melee . | . . Ramming 8 | . 8 Kinetic 14 | . 14 Thermal 1013 | . 1013 Explosive . | . . Electromagnetic 247 | . 247 Impact . | . . Slashing . | . . Piercing . | . . Highest Corruption . | . . Average Corruption . | . . Corruption Purged . | . . Overload Shots . | . . Overflow Damage . | . . Projectiles . | . . Explosions . | . . Melee . | . . Knockbacks . | . . Impact . | . . Kinetic . | . . Secondary . | . . Self-Inflicted Damage 1 | . 1 Shots . | . . Rammed 5 | . 5 Targets Rammed 7 | . 7 Kicked 1 | . 1 Crushed 1 | . 1 Highest Temperature 543 | . 543 Average Temperature 131 | . 131 Received Heat Transfer 390 | . 390 Effects 7 | . 7 Shutdowns 1 | . 1 Energy Bleed 1 | . 1 Interference 1 | . 1 Short Circuit 1 | . 1 Damage (minor) 2 | . 2 Damage (core) 1 | . 1 Siege Activations . | . . Robots Corrupted . | . . Combat Hostiles . | . . Parts Fried . | . . Impact Corruptions . | . . Robots Melted . | . . Combat Hostiles . | . . Parts Melted 3 | . 3 Heat Transferred 2405 | . 2405 Parts Sabotaged . | . . Parts Stolen . | . . Parts Stripped . | . . Power Chain Reactions . | . . Missiles Intercepted . | . . Alert | -11 -10 ------- Run | Scr Mat Peak Influence 270 | . 270 Initial . | . . Average 93 | . 97 Maximum Alert Level 1 | . 1 Low Security (%) 92 | 100 92 Level 1 7 | . 7 Level 2 . | . . Level 3 . | . . Level 4 . | . . Level 5 . | . . High Security . | . . Max Security . | . . Squads Dispatched 4 | . 4 Investigation 4 | . 4 Extermination . | . . Reinforcement . | . . Assault . | . . Garrison . | . . Intercept . | . . Construction Impeded . | . . Haulers Reinforced . | . . Stealth | -11 -10 --------- Run | Scr Mat Distress Signals . | . . Communications Jammed . | . . Distress Signals . | . . Times Spotted 34 | . 34 Peak Tracking Total 5 | . 5 Tactical Retreats 2 | . 2 Traps | -11 -10 ------- Run | Scr Mat Traps Triggered 3 | . 3 Indirectly . | . . Trap Hack Attempts . | . . Triggered . | . . Disarmed . | . . Reprogrammed . | . . Reused . | . . Traps Extracted . | . . Installed . | . . Triggered . | . . Machines | -11 -10 ---------- Run | Scr Mat Machines Disabled 3 | . 3 Max in Single Turn 1 | . 1 Machines Sabotaged . | . . Garrisons Compromised . | . . Overloaded Fab Kills . | . . Fab Network Shutdowns . | . . Hacking | -11 -10 --------- Run | Scr Mat Machines Accessed 8 | . 8 Terminals 7 | . 7 Fabricators . | . . Repair Stations 1 | . 1 Recycling Units . | . . Scanalyzers . | . . Garrison Access . | . . Total Hacks 25 | . 25 Successful 15 | . 15 Failed 10 | . 10 Catastrophic 1 | . 1 Database Lockouts . | . . Manual . | . . Terminals 23 | . 23 Fabricators . | . . Repair Stations 2 | . 2 Recycling Units . | . . Scanalyzers . | . . Garrison Access . | . . Terminal Hacks 13 | . 13 Record 2 | . 2 Prototype ID Bank 3 | . 3 Branch Access Points 1 | . 1 Locate Traps 2 | . 2 Maintenance Status 1 | . 1 Hauler Manifests 1 | . 1 Zone Layout 3 | . 3 Fabricator Hacks . | . . Repair Station Hacks 2 | . 2 Scan Component 1 | . 1 Repair 1 | . 1 Recycling Unit Hacks . | . . Scanalyzer . | . . Garrison Access Hacks . | . . Unauthorized Hacks . | . . Terminals . | . . Fabricators . | . . Repair Stations . | . . Recycling Units . | . . Scanalyzers . | . . Garrison Access . | . . Data Cores Recovered . | . . Used . | . . Hacking Detections 5 | . 5 Full Trace Events 4 | . 4 Feedback Events . | . . Feedback Blocked . | . . Robot Schematics Acquired . | . . Robots Built . | . . Matter . | . . Time . | . . Total Robot Build Rating . | . . Part Schematics Acquired . | . . Parts Built . | . . Matter . | . . Time . | . . Total Part Build Rating . | . . Parts Repaired 1 | . 1 Time 32 | . 32 Parts Recycled . | . . Recycled Matter . | . . Retrieved Matter . | . . Retrieved Components . | . . Parts Scanalyzed . | . . Part Schematics Acquired . | . . Parts Damaged . | . . Bothacking | -11 -10 ------------ Run | Scr Mat Used RIF Installer . | . . Robots Hacked . | . . Non-combat . | . . Combat . | . . Robot Hacks Applied . | . . Relay Couplers Released . | . . Robots Rewired . | . . Allies Hacked . | . . Hacks Repelled . | . . Allies | -11 -10 -------- Run | Scr Mat Total Allies . | . . Largest Group . | . . Highest-Rated Group . | . . Highest-Rated Ally . | . . Total Orders . | . . Ally Attacks . | . . Total Damage . | . . Kills . | . . Allies Corrupted . | . . Allies Melted . | . . Intel | -11 -10 ------- Run | Scr Mat Robot Analysis Total . | . . Derelict Logs Recovered . | . . Drone Launches . | . . Drone Recoveries . | . . Exploration | -11 -10 ------------- Run | Scr Mat Turns Passed 1461 | 56 1405 Spaces Moved 822 | 39 783 Core 16 | 16 . Treads 269 | 23 246 Legs 537 | . 537 Wheels . | . . Hover . | . . Flight . | . . Fastest Speed 50 | 50 120 Average Speed 132 | 122 132 Slowest Speed 160 | 160 160 Overloaded Moves . | . . Propulsion Burnouts . | . . Robots Hopped . | . . Cave-ins Triggered . | . . Exploration Rate (%) 45 | 4 86 Regions Visited 1 Branch Regions . Pre-discovered Areas . | . . Known Exits Taken . | . . Unknown Exits Taken 1 | 1 . Scrap Searched . | . . Spaces Dug . | . . Terrain Destroyed . | . . Melee . | . . Projectile . | . . AOE . | . . Terrain Rammed . | . . Walls Destroyed . | . . Machines Disabled . | . . Actions | -11 -10 --------- Run | Scr Mat Total 1036 | 44 992 Wait 92 | . 92 Move 821 | 38 783 Hop . | . . Pick Up . | . . Fast Attach 20 | 6 14 Attach 1 | . 1 Detach . | . . Swap 4 | . 4 Drop 8 | . 8 Fire 83 | . 83 Melee . | . . Ram . | . . Kick 5 | . 5 Crush 2 | . 2 Escape Stasis . | . . Rewire . | . . Trap . | . . Miscellaneous . | . . Route ------- -11/Scrapyard -10/Materials (discovered 5 exits: [*Mat x3] / *Min x2) History --------- Turn | Location | Event 2 | -11/Scrapyard | Discovered new exit (range 16) 57 | -11/Scrapyard | Entered Materials 123 | -10/Materials | Discovered new exit (range 16) 301 | -10/Materials | Build established: Mutant 460 | -10/Materials | Core integrity fell below 50% 874 | -10/Materials | Repaired Particle Gun 952 | -10/Materials | Build established: Scavenger-Mutant 957 | -10/Materials | Discovered new exit (range 11) 971 | -10/Materials | Identified exit to Mines 1087 | -10/Materials | Discovered new exit (range 17) 1257 | -10/Materials | Discovered new exit (range 9) 1368 | -10/Materials | Core integrity fell below 20% 1462 | -10/Materials | Destroyed by G-34 Mercenary with Small Laser Last Messages --------------- 01420_ Triggered Alarm Trap. 01420_ An alarm sounds. 01420_ ALERT: Alarm triggered, dispatching investigation squad. 01436_ G-34 Mercenary destroyed. 01442_ Imp. Heat Sink destroyed. 01442_ Destroyed Heat Sink. 01443_ Aluminum Leg destroyed. 01444_ Particle Gun destroyed. 01447_ Sml. Laser melted. 01447_ G-34 Mercenary destroyed. 01450_ Particle Gun destroyed. 01451_ K-01 Serf collects debris. 01451_ Kicked G-34 Mercenary out of the way. 01452_ Slammed into G-34 Mercenary. 01454_ K-01 Serf collects debris. 01455_ Slammed into G-34 Mercenary. 01456_ Destabilizing: Core damaged (-2). 01459_ K-01 Serf collects debris. 01460_ Acquired Aluminum Leg. 01461_ Acquired 4 matter. Map ----- +----------------------------------------------------+ | ???# # #???????? "Y" + # | | ???# + #???????? # =%# | | ???###+##+#### # #???????? #=!*# | | ???# #### ########???????? #%[%####### | | #### #""" #??????????????#######=[=% #?? | | + #" #????????????????????# *! < #?? | | #### #"| #????????????????????# #?? | | ???# "T" #"" > #????????????????????# #####?? | | ???# """ #"! #????????????????????# #?????? | | ???##+#####" #????????????????????# #?????? | | ????# #???#""" #?????????????######## #?????? | | ????# #???#### ########???????# ####### | | ##### ######## #[""" #???????# +=%"T" | | +!""" #???????# ##%%== | | #%""" #???????## ########## [[ | | """"" #%=%= #????????# #????????# | | """"""""" ##%==[ #????????# #????????# | | "" """ ##![ #????#####+#####????# """ | | ############## #????# """ | | ! ## # #????# """ | | !% ## ]+! #????# | | ##+###+## ## """ """ #%= #????# """ | | # ## ## """%""" #= #????# """ | | # T ## ## """%""" # #????# """ | | # ## ## k *!%% g # =#????# | | # ## ## ! *% @% # #????####+# | | # ## ########+##########+########### # | | ### """ ## # | | #?# """=*## ###### # | | #?# """%=## #????# # | | #?# *%+ ##############+####### #????# # | | #?# """ ## # ///=[#???# #??# #????#### | | #?# """ ## +!/%/! #???# #?# #??????? | | # #?# """ ## #"""/ #???# ## #?????? | | # #?# ## < #""" #???# ## #?????? | | #+#?######### #""" #???# ## > #?????? | | #?????????##### #???# ## #?????? | | #?????????????########???#########"" ""#?????? | | #????????????????????????????????##"!!!"##?????? | | #?????????????????????????????????##"""##??????? | | " #??????????????????????????????????#####???????? | | " #??????????????????????????????????????????????? | | " #??????????????????????????????????????????????? | | #??????????????????????????????????????????????? | | ###??????????????????????????????????????????????? | | | | | | | | | | | +----------------------------------------------------+ Best States ------------- Heat Dissipation 49 Energy Generation 10 Energy Capacity 250 Matter Stores 300 Matter Capacity 300 Sight Range 16 Terrain Scan Density 10 Evasion (%) 50 Recoil Reduction 2 Item Schematics ----------------- None Robot Schematics ------------------ None Fabricated ------------ Nothing Alien Tech Used ----------------- None Achievements -------------- None Challenges ------------ None Game ------ Seed GreatFireMantle Manual? 0 Play Time 00:17:30 Cumulative 56.9 hours Start 2021.05.11 @ 12:22:16 End 2021.05.11 @ 12:56:59 Sessions 1 Manual Loads 0 Difficulty Rogue Special Mode None Game No. 126 Rogue 126 Adventurer 0 Explorer 0 Win Type - Total 0 Types 0/0/0/0/0/0/0/0/0 Lore% 25 Gallery% 32 Achievement% 26 Wizard Run 0 Options --------- ASCII 0 Keyboard 0 Movement Numpad Keybinds 0 Fullscreen 1 Font 12/Smallcaps Map View 83x54 Tactical HUD 1 Map Filters NONE Filters NONE Steam 1 RUN: f2053e5c-ad9c-4efa-874b-dba63e1d2a00